fUST/lending_fUST_20250619
["ID","MTS","AMOUNT","RATE_DAILY","PERIOD"]
[366527896,1750306159672,172.52,0.00018386,2]
[366527898,1750306195047,167.801321,0.00013699,2]
[366527899,1750306203539,3500.0,0.00022,30]
[366527931,1750306232429,-10485.4454166,0.00019171,2]
[366527932,1750306232439,-345.03,0.00019261,2]
[366527933,1750306232452,-666.0,0.0001944,2]
[366527934,1750306232462,-182.98456767,0.00019481,2]
[366527935,1750306232471,-300.0,0.0001968,2]
[366527936,1750306232481,-300.0,0.0001968,2]
[366527937,1750306232490,-300.0,0.0001968,2]
[366527938,1750306232500,-1200.0,0.0001968,2]
[366527939,1750306232510,-840.0,0.00019681,3]
[366527940,1750306232519,-844.0,0.00019681,3]
[366527941,1750306232529,-840.0,0.00019681,3]
[366527942,1750306232539,-840.0,0.00019681,3]
[366527943,1750306232550,-840.0,0.00019681,3]
[366527944,1750306232560,-28907.76966185,0.00019681,2]
[366527945,1750306232570,-415.1891431,0.00019736,2]
[366527946,1750306232579,-182.98456766,0.00019772,2]
[366527947,1750306232589,-433.8611093,0.00019848,2]
[366527948,1750306232598,-182.98456766,0.00020063,2]
[366527949,1750306232607,-517.55,0.00020137,2]
[366527950,1750306232617,-200.26,0.000202,6]
[366527951,1750306232626,-182.98456766,0.00020354,2]
[366527952,1750306232635,-197.48861561,0.00020645,2]
[366527953,1750306232645,-182.98456766,0.00020645,2]
[366527954,1750306232654,-191.86608966,0.00020744,2]
[366527955,1750306232664,-666.56761442,0.00020744,2]
[366527956,1750306232673,-666.56761442,0.00020744,2]
[366527957,1750306232683,-666.56761442,0.00020744,2]
[366527958,1750306232692,-666.56761442,0.00020744,2]
[366527959,1750306232702,-226.51503391,0.00020745,2]
[366527960,1750306232711,-500.0,0.00020745,2]
[366527961,1750306232720,-500.0,0.00020745,2]
[366527962,1750306232730,-500.0,0.00020745,2]
[366527963,1750306232740,-500.0,0.00020745,2]
[366527964,1750306232749,-500.0,0.00020745,2]
[366527965,1750306232759,-371.04953586,0.00020745,2]
[366527966,1750306232768,-500.0,0.00020745,2]
[366527967,1750306232778,-500.0,0.00020745,2]
[366527968,1750306232787,-357.11825547,0.00020745,2]
[366527969,1750306232796,-500.0,0.00020745,2]
[366527970,1750306232806,-500.0,0.00020745,2]
[366527971,1750306232815,-500.0,0.00020745,2]
[366527972,1750306232825,-500.0,0.00020745,2]
[366527973,1750306232834,-500.0,0.00020745,2]
[366527974,1750306232844,-500.0,0.00020745,2]
[366527975,1750306232853,-500.0,0.00020745,2]
[366527976,1750306232862,-500.0,0.00020745,2]
[366527977,1750306232872,-500.0,0.00020745,2]
[366527978,1750306232881,-500.0,0.00020745,2]
[366527979,1750306232892,-500.0,0.00020745,2]
[366527980,1750306232901,-500.0,0.00020745,2]
[366527981,1750306232911,-500.0,0.00020745,2]
[366527990,1750306233090,-500.0,0.00020745,2]
[366527991,1750306233100,-545.69009648,0.00020745,2]
[366527992,1750306233110,-500.0,0.00020745,2]
[366527993,1750306233122,-500.0,0.00020745,2]
[366527994,1750306233131,-500.0,0.00020745,2]
[366527995,1750306233140,-508.37893964,0.00020745,2]
[366527996,1750306233150,-397.01177311,0.00020745,2]
[366527997,1750306233159,-500.0,0.00020745,2]
[366527998,1750306233168,-500.0,0.00020745,2]
[366527999,1750306233177,-500.0,0.00020745,2]
[366528000,1750306233186,-500.0,0.00020745,2]
[366528001,1750306233195,-500.0,0.00020745,2]
[366528002,1750306233205,-500.0,0.00020745,2]
[366528003,1750306233214,-500.0,0.00020745,2]
[366528004,1750306233223,-500.0,0.00020745,2]
[366528005,1750306233233,-500.0,0.00020745,2]
[366528006,1750306233242,-500.0,0.00020745,2]
[366528007,1750306233252,-500.0,0.00020745,2]
[366528008,1750306233262,-500.0,0.00020745,2]
[366528009,1750306233271,-500.0,0.00020745,2]
[366528010,1750306233281,-500.0,0.00020745,2]
[366528011,1750306233290,-500.0,0.00020745,2]
[366528012,1750306233300,-500.0,0.00020745,2]
[366528013,1750306233310,-315.51306323,0.00020745,2]
[366528014,1750306233320,-500.0,0.00020745,2]
[366528015,1750306233330,-500.0,0.00020745,2]
[366528016,1750306233339,-500.0,0.00020745,2]
[366528017,1750306233349,-500.0,0.00020745,2]
[366528018,1750306233359,-500.0,0.00020745,2]
[366528019,1750306233368,-557.52086683,0.00020745,2]
[366528020,1750306233379,-500.0,0.00020745,2]
[366528021,1750306233388,-500.0,0.00020745,2]
[366528022,1750306233398,-500.0,0.00020745,2]
[366528023,1750306233408,-500.0,0.00020745,2]
[366528024,1750306233417,-500.0,0.00020745,2]
[366528025,1750306233427,-500.0,0.00020745,2]
[366528026,1750306233436,-500.0,0.00020745,2]
[366528027,1750306233446,-500.0,0.00020745,2]
[366528028,1750306233456,-500.0,0.00020745,2]
[366528029,1750306233465,-500.0,0.00020745,2]
[366528030,1750306233475,-500.0,0.00020745,2]
[366528031,1750306233484,-500.0,0.00020745,2]
[366528032,1750306233494,-500.0,0.00020745,2]
[366528033,1750306233504,-500.0,0.00020745,2]
[366528034,1750306233514,-500.0,0.00020745,2]
[366528035,1750306233523,-500.0,0.00020745,2]
[366528036,1750306233532,-267.24421579,0.00020745,2]
[366528037,1750306233543,-500.0,0.00020745,2]
[366528038,1750306233552,-500.0,0.00020745,2]
[366528039,1750306233561,-500.0,0.00020745,2]
[366528040,1750306233570,-500.0,0.00020745,2]
[366528041,1750306233580,-500.0,0.00020745,2]
[366528042,1750306233589,-500.0,0.00020745,2]
[366528043,1750306233598,-500.0,0.00020745,2]
[366528044,1750306233608,-500.0,0.00020745,2]
[366528045,1750306233617,-500.0,0.00020745,2]
[366528046,1750306233627,-500.0,0.00020745,2]
[366528047,1750306233636,-500.0,0.00020745,2]
[366528048,1750306233646,-615.86624633,0.00020745,2]
[366528049,1750306233655,-500.0,0.00020745,2]
[366528050,1750306233664,-500.0,0.00020745,2]
[366528051,1750306233673,-500.0,0.00020745,2]
[366528052,1750306233683,-500.0,0.00020745,2]
[366528053,1750306233692,-500.0,0.00020745,2]
[366528054,1750306233701,-500.0,0.00020745,2]
[366528055,1750306233710,-500.0,0.00020745,2]
[366528056,1750306233720,-500.0,0.00020745,2]
[366528057,1750306233729,-500.0,0.00020745,2]
[366528058,1750306233738,-500.0,0.00020745,2]
[366528059,1750306233759,-500.0,0.00020745,2]
[366528060,1750306233770,-500.0,0.00020745,2]
[366528061,1750306233781,-500.0,0.00020745,2]
[366528062,1750306233791,-500.0,0.00020745,2]
[366528063,1750306233803,-500.0,0.00020745,2]
[366528064,1750306233812,-500.0,0.00020745,2]
[366528065,1750306233823,-500.0,0.00020745,2]
[366528066,1750306233834,-500.0,0.00020745,2]
[366528067,1750306233844,-500.0,0.00020745,2]
[366528068,1750306233855,-500.0,0.00020745,2]
[366528069,1750306233865,-500.0,0.00020745,2]
[366528070,1750306233875,-500.0,0.00020745,2]
[366528071,1750306233885,-500.0,0.00020745,2]
[366528072,1750306233896,-500.0,0.00020745,2]
[366528073,1750306233908,-500.0,0.00020745,2]
[366528074,1750306233918,-500.0,0.00020745,2]
[366528075,1750306233928,-500.0,0.00020745,2]
[366528076,1750306233938,-500.0,0.00020745,2]
[366528077,1750306233948,-436.92673458,0.00020745,2]
[366528078,1750306233965,-500.0,0.00020745,2]
[366528079,1750306233974,-300.0,0.00020746,2]
[366528080,1750306233984,-285.28,0.00020747,2]
[366528081,1750306233995,-173.69,0.00020749,2]
[366528082,1750306234004,-500.0,0.00020761,2]
[366528083,1750306234014,-500.0,0.00020762,2]
[366528084,1750306234023,-24900.0,0.00020762,2]
[366528085,1750306234035,-706.07,0.000208,2]
[366528086,1750306234044,-168.473678,0.00020891,2]
[366528087,1750306234053,-690.07,0.00021012,2]
[366528088,1750306234063,-500.0,0.00021035,2]
[366528089,1750306234073,-197.48861555,0.0002128,2]
[366528090,1750306234082,-305.08020661,0.00021309,2]
[366528091,1750306234092,-338.54324052,0.00021418,2]
[366528092,1750306234101,-420.0,0.00021436,2]
[366528093,1750306234111,-420.0,0.00021436,2]
[366528094,1750306234120,-193.0,0.00021436,2]
[366528095,1750306234130,-300.37242511,0.00021536,2]
[366528096,1750306234140,-1680.0,0.00021539,2]
[366528097,1750306234149,-210.1893985,0.0002181,13]
[366528098,1750306234159,-705.25673988,0.00021817,2]
[366528099,1750306234168,-281.17504457,0.00021855,2]
[366528100,1750306234177,-862.58,0.00021888,2]
[366528101,1750306234186,-184.71,0.00021907,3]
[366528102,1750306234195,-554.17,0.00021907,3]
[366528103,1750306234205,-195.22,0.00021907,3]
[366528104,1750306234214,-585.7,0.00021907,3]
[366528105,1750306234223,-197.48861555,0.00021915,2]
[366528106,1750306234233,-160.0,0.00021916,2]
[366528107,1750306234243,-468.30236844,0.00021917,6]
[366528108,1750306234253,-430.0,0.00021917,6]
[366528109,1750306234262,-430.0,0.00021917,6]
[366528110,1750306234272,-460.0,0.00021917,6]
[366528111,1750306234281,-460.0,0.00021917,6]
[366528112,1750306234291,-307.59471826,0.00021917,6]
[366528113,1750306234302,-272.29,0.00021917,6]
[366528114,1750306234312,-460.0,0.00021917,6]
[366528115,1750306234323,-430.0,0.00021917,6]
[366528116,1750306234332,-401.79784008,0.00021917,6]
[366528117,1750306234342,-460.0,0.00021917,6]
[366528118,1750306234351,-430.0,0.00021917,6]
[366528119,1750306234361,-430.0,0.00021917,6]
[366528120,1750306234369,-405.18553562,0.00021917,6]
[366528121,1750306234379,-460.0,0.00021917,6]
[366528122,1750306234388,-405.04624404,0.00021917,6]
[366528123,1750306234398,-433.22460354,0.00021917,6]
[366528124,1750306234407,-430.0,0.00021917,6]
[366528125,1750306234417,-431.48898615,0.00021917,6]
[366528126,1750306234426,-430.0,0.00021917,6]
[366528127,1750306234436,-460.0,0.00021917,6]
[366528128,1750306234446,-460.0,0.00021917,6]
[366528129,1750306234456,-460.0,0.00021917,6]
[366528130,1750306234466,-460.0,0.00021917,6]
[366528131,1750306234476,-460.0,0.00021917,6]
[366528132,1750306234485,-456.53913042,0.00021917,6]
[366528133,1750306234495,-370.0,0.00021917,6]
[366528134,1750306234505,-460.0,0.00021917,6]
[366528135,1750306234514,-484.5127554,0.00021917,6]
[366528136,1750306234524,-430.0,0.00021917,6]
[366528137,1750306234533,-430.0,0.00021917,6]
[366528138,1750306234543,-241.37754051,0.00021917,6]
[366528139,1750306234552,-404.11312759,0.00021917,6]
[366528140,1750306234562,-430.0,0.00021917,6]
[366528141,1750306234572,-460.0,0.00021917,6]
[366528142,1750306234581,-460.0,0.00021917,6]
[366528143,1750306234590,-430.0,0.00021917,6]
[366528144,1750306234600,-430.0,0.00021917,6]
[366528145,1750306234609,-460.0,0.00021917,6]
[366528146,1750306234618,-460.0,0.00021917,6]
[366528147,1750306234628,-460.0,0.00021917,6]
[366528148,1750306234638,-521.75487887,0.00021917,6]
[366528149,1750306234651,-460.0,0.00021917,6]
[366528150,1750306234661,-351.6245047,0.00021917,6]
[366528151,1750306234670,-491.10727752,0.00021917,6]
[366528152,1750306234680,-390.0,0.00021917,6]
[366528153,1750306234689,-555.3796375,0.00021917,6]
[366528154,1750306234699,-500.0,0.00021917,6]
[366528155,1750306234708,-500.0,0.00021917,6]
[366528156,1750306234718,-500.0,0.00021917,6]
[366528157,1750306234728,-460.0,0.00021917,6]
[366528158,1750306234738,-167.3305497,0.00021917,6]
[366528159,1750306234747,-460.0,0.00021917,6]
[366528160,1750306234757,-440.0,0.00021917,6]
[366528161,1750306234768,-460.0,0.00021917,6]
[366528162,1750306234778,-540.0,0.00021917,6]
[366528163,1750306234788,-460.0,0.00021917,6]
[366528164,1750306234798,-460.0,0.00021917,6]
[366528165,1750306234808,-460.0,0.00021917,6]
[366528166,1750306234817,-460.0,0.00021917,6]
[366528167,1750306234827,-460.0,0.00021917,6]
[366528168,1750306234836,-452.37525761,0.00021917,6]
[366528169,1750306234845,-460.0,0.00021917,6]
[366528170,1750306234855,-460.0,0.00021917,6]
[366528171,1750306234864,-460.0,0.00021917,6]
[366528172,1750306234873,-494.24048029,0.00021917,6]
[366528173,1750306234883,-514.96000003,0.00021917,6]
[366528174,1750306234892,-470.96987276,0.00021917,6]
[366528175,1750306234902,-460.0,0.00021917,6]
[366528176,1750306234911,-434.16130122,0.00021917,6]
[366528177,1750306234920,-450.0,0.00021917,6]
[366528178,1750306234930,-460.0,0.00021917,6]
[366528179,1750306234939,-460.0,0.00021917,6]
[366528180,1750306234949,-460.0,0.00021917,6]
[366528181,1750306234961,-440.0,0.00021917,6]
[366528182,1750306234970,-460.0,0.00021917,6]
[366528183,1750306234979,-440.04365938,0.00021917,6]
[366528184,1750306234989,-460.0,0.00021917,6]
[366528185,1750306234999,-460.0,0.00021917,6]
[366528186,1750306235008,-430.0,0.00021917,6]
[366528187,1750306235017,-460.0,0.00021917,6]
[366528188,1750306235026,-366.16807931,0.00021917,6]
[366528189,1750306235035,-151.0,0.00021917,6]
[366528190,1750306235045,-460.0,0.00021917,6]
[366528191,1750306235054,-151.0,0.00021917,6]
[366528192,1750306235063,-460.0,0.00021917,6]
[366528193,1750306235073,-500.0,0.00021917,6]
[366528194,1750306235082,-151.0,0.00021917,6]
[366528195,1750306235091,-460.0,0.00021917,6]
[366528196,1750306235101,-430.0,0.00021917,6]
[366528197,1750306235110,-460.0,0.00021917,6]
[366528198,1750306235120,-151.0,0.00021917,6]
[366528199,1750306235129,-460.0,0.00021917,6]
[366528200,1750306235138,-460.0,0.00021917,6]
[366528201,1750306235147,-460.0,0.00021917,6]
[366528202,1750306235157,-432.1869498,0.00021917,6]
[366528203,1750306235166,-460.0,0.00021917,6]
[366528204,1750306235175,-440.0,0.00021917,6]
[366528205,1750306235185,-434.49119712,0.00021917,6]
[366528206,1750306235194,-460.0,0.00021917,6]
[366528207,1750306235203,-487.24202005,0.00021917,6]
[366528208,1750306235213,-436.01706513,0.00021917,6]
[366528209,1750306235222,-321.33140476,0.00021917,6]
[366528210,1750306235232,-460.0,0.00021917,6]
[366528211,1750306235241,-460.0,0.00021917,6]
[366528212,1750306235252,-460.0,0.00021917,6]
[366528213,1750306235261,-440.0,0.00021917,6]
[366528214,1750306235271,-430.0,0.00021917,6]
[366528215,1750306235281,-460.0,0.00021917,6]
[366528216,1750306235291,-460.0,0.00021917,6]
[366528217,1750306235300,-443.71080333,0.00021917,6]
[366528218,1750306235310,-460.0,0.00021917,6]
[366528219,1750306235320,-460.0,0.00021917,6]
[366528220,1750306235330,-460.0,0.00021917,6]
[366528221,1750306235340,-460.0,0.00021917,6]
[366528222,1750306235350,-460.0,0.00021917,6]
[366528223,1750306235359,-460.0,0.00021917,6]
[366528224,1750306235368,-431.49405312,0.00021917,6]
[366528225,1750306235378,-460.0,0.00021917,6]
[366528226,1750306235387,-460.0,0.00021917,6]
[366528227,1750306235397,-460.0,0.00021917,6]
[366528228,1750306235407,-460.0,0.00021917,6]
[366528229,1750306235416,-430.92488639,0.00021917,6]
[366528230,1750306235425,-379.40900658,0.00021917,6]
[366528231,1750306235435,-460.0,0.00021917,6]
[366528232,1750306235445,-460.0,0.00021917,6]
[366528233,1750306235455,-440.0,0.00021917,6]
[366528234,1750306235587,-460.0,0.00021917,6]
[366528235,1750306235596,-460.0,0.00021917,6]
[366528236,1750306235606,-460.0,0.00021917,6]
[366528237,1750306235615,-450.23506861,0.00021917,6]
[366528238,1750306235624,-430.0,0.00021917,6]
[366528239,1750306235633,-460.0,0.00021917,6]
[366528240,1750306235642,-430.0,0.00021917,6]
[366528241,1750306235651,-460.0,0.00021917,6]
[366528242,1750306235661,-460.0,0.00021917,6]
[366528243,1750306235670,-586.88334488,0.00021917,6]
[366528244,1750306235679,-460.0,0.00021917,6]
[366528245,1750306235688,-391.40508588,0.00021917,6]
[366528246,1750306235697,-460.0,0.00021917,6]
[366528247,1750306235706,-460.0,0.00021917,6]
[366528248,1750306235715,-396.67448792,0.00021917,6]
[366528249,1750306235725,-440.0,0.00021917,6]
[366528250,1750306235734,-430.0,0.00021917,6]
[366528251,1750306235744,-272.72249542,0.00021917,6]
[366528252,1750306235755,-460.0,0.00021917,6]
[366528253,1750306235766,-430.0,0.00021917,6]
[366528254,1750306235775,-460.0,0.00021917,6]
[366528255,1750306235786,-460.0,0.00021917,6]
[366528256,1750306235796,-460.0,0.00021917,6]
[366528257,1750306235805,-460.0,0.00021917,6]
[366528258,1750306235816,-460.0,0.00021917,6]
[366528259,1750306235826,-195.40122864,0.00021917,6]
[366528260,1750306235836,-168.21391806,0.00021917,6]
[366528261,1750306235845,-460.0,0.00021917,6]
[366528262,1750306235855,-460.0,0.00021917,6]
[366528263,1750306235864,-460.0,0.00021917,6]
[366528264,1750306235874,-460.0,0.00021917,6]
[366528265,1750306235883,-470.4229603,0.00021917,6]
[366528266,1750306235893,-460.0,0.00021917,6]
[366528267,1750306235902,-460.0,0.00021917,6]
[366528268,1750306235912,-430.0,0.00021917,6]
[366528269,1750306235921,-460.0,0.00021917,6]
[366528270,1750306235930,-460.0,0.00021917,6]
[366528271,1750306235940,-460.0,0.00021917,6]
[366528272,1750306235951,-460.0,0.00021917,6]
[366528273,1750306235962,-463.66510937,0.00021917,6]
[366528274,1750306235972,-435.2017957,0.00021917,6]
[366528275,1750306235983,-460.0,0.00021917,6]
[366528276,1750306235993,-460.0,0.00021917,6]
[366528277,1750306236002,-460.0,0.00021917,6]
[366528278,1750306236011,-460.0,0.00021917,6]
[366528279,1750306236021,-438.82193611,0.00021917,6]
[366528280,1750306236034,-460.0,0.00021917,6]
[366528281,1750306236043,-440.0,0.00021917,6]
[366528282,1750306236053,-435.38247024,0.00021917,6]
[366528283,1750306236063,-460.0,0.00021917,6]
[366528284,1750306236074,-460.0,0.00021917,6]
[366528285,1750306236084,-440.0,0.00021917,6]
[366528286,1750306236093,-460.0,0.00021917,6]
[366528287,1750306236103,-460.0,0.00021917,6]
[366528288,1750306236113,-466.19673808,0.00021917,6]
[366528289,1750306236122,-460.0,0.00021917,6]
[366528290,1750306236133,-502.74,0.00021917,6]
[366528291,1750306236142,-360.0,0.00021917,6]
[366528292,1750306236152,-460.0,0.00021917,6]
[366528293,1750306236163,-440.0,0.00021917,6]
[366528294,1750306236173,-460.0,0.00021917,6]
[366528295,1750306236183,-460.0,0.00021917,6]
[366528296,1750306236194,-439.40458515,0.00021917,6]
[366528297,1750306236204,-460.0,0.00021917,6]
[366528298,1750306236213,-403.80584829,0.00021917,6]
[366528299,1750306236222,-445.31263386,0.00021917,6]
[366528300,1750306236231,-460.74,0.00021917,6]
[366528301,1750306236240,-244.5649086,0.00021917,6]
[366528302,1750306236249,-265.81680546,0.00021917,6]
[366528303,1750306236259,-460.0,0.00021917,6]
[366528304,1750306236269,-460.0,0.00021917,6]
[366528305,1750306236279,-460.0,0.00021917,6]
[366528306,1750306236290,-471.45160349,0.00021917,2]
[366528307,1750306236300,-460.0,0.00021917,6]
[366528308,1750306236309,-452.91587572,0.00021917,6]
[366528309,1750306236318,-460.0,0.00021917,6]
[366528310,1750306236327,-503.69791865,0.00021917,6]
[366528311,1750306236336,-432.62044766,0.00021917,6]
[366528312,1750306236346,-460.0,0.00021917,6]
[366528313,1750306236355,-460.0,0.00021917,6]
[366528314,1750306236364,-460.0,0.00021917,6]
[366528315,1750306236374,-460.0,0.00021917,6]
[366528316,1750306236386,-460.0,0.00021917,6]
[366528317,1750306236395,-1672.87,0.00021917,6]
[366528318,1750306236404,-440.0,0.00021917,6]
[366528319,1750306236413,-460.0,0.00021917,6]
[366528320,1750306236422,-244.52825067,0.00021917,6]
[366528321,1750306236431,-437.50454865,0.00021917,6]
[366528322,1750306236441,-460.0,0.00021917,6]
[366528323,1750306236450,-460.0,0.00021917,6]
[366528324,1750306236459,-430.90313628,0.00021917,6]
[366528325,1750306236468,-464.43349287,0.00021917,6]
[366528326,1750306236477,-435.83978008,0.00021917,6]
[366528327,1750306236487,-500.0,0.00021917,6]
[366528328,1750306236496,-431.68054008,0.00021917,6]
[366528329,1750306236505,-460.0,0.00021917,6]
[366528330,1750306236514,-460.0,0.00021917,6]
[366528331,1750306236524,-432.89995744,0.00021917,6]
[366528332,1750306236533,-460.0,0.00021917,6]
[366528333,1750306236542,-460.0,0.00021917,6]
[366528334,1750306236551,-462.34662441,0.00021917,6]
[366528335,1750306236560,-460.0,0.00021917,6]
[366528336,1750306236569,-443.15024521,0.00021917,6]
[366528337,1750306236579,-500.0,0.00021917,6]
[366528338,1750306236589,-1026.17367946,0.00021917,6]
[366528339,1750306236598,-460.0,0.00021917,6]
[366528340,1750306236608,-433.44900844,0.00021917,6]
[366528341,1750306236617,-460.0,0.00021917,6]
[366528342,1750306236626,-460.0,0.00021917,6]
[366528343,1750306236636,-460.0,0.00021917,6]
[366528344,1750306236645,-470.83852337,0.00021917,6]
[366528345,1750306236654,-460.0,0.00021917,6]
[366528346,1750306236664,-460.0,0.00021917,6]
[366528347,1750306236673,-460.0,0.00021917,6]
[366528348,1750306236682,-460.0,0.00021917,6]
[366528349,1750306236691,-460.0,0.00021917,6]
[366528350,1750306236701,-441.03460248,0.00021917,6]
[366528351,1750306236710,-460.0,0.00021917,6]
[366528352,1750306236719,-431.9275173,0.00021917,6]
[366528353,1750306236728,-460.0,0.00021917,6]
[366528354,1750306236737,-460.0,0.00021917,6]
[366528355,1750306236746,-460.0,0.00021917,6]
[366528356,1750306236755,-324.25546616,0.00021917,6]
[366528357,1750306236764,-460.0,0.00021917,6]
[366528358,1750306236774,-447.02866952,0.00021917,6]
[366528359,1750306236783,-460.0,0.00021917,6]
[366528360,1750306236792,-438.03744306,0.00021917,6]
[366528361,1750306236802,-460.0,0.00021917,6]
[366528362,1750306236811,-460.0,0.00021917,6]
[366528363,1750306236820,-460.0,0.00021917,6]
[366528364,1750306236829,-460.0,0.00021917,6]
[366528365,1750306236838,-281.91117389,0.00021917,6]
[366528366,1750306236848,-460.0,0.00021917,6]
[366528367,1750306236857,-460.0,0.00021917,6]
[366528368,1750306236867,-460.0,0.00021917,6]
[366528369,1750306236876,-460.0,0.00021917,6]
[366528370,1750306236885,-194.00833221,0.00021917,6]
[366528371,1750306236911,-265.99166779,0.00021917,6]
[366528372,1750306236920,-500.0,0.00021917,6]
[366528373,1750306236930,-460.0,0.00021917,6]
[366528374,1750306236939,-460.0,0.00021917,6]
[366528375,1750306236948,-300.08081212,0.00021917,6]
[366528384,1750306238159,-666.56761442,0.00020744,2]
[366528385,1750306238169,-666.56761442,0.00020744,2]
[366528386,1750306238178,-666.56761442,0.00020744,2]
[366528387,1750306238187,-666.56761442,0.00020744,2]
[366528388,1750306238197,-666.56761442,0.00020744,2]
[366528389,1750306238206,-666.56761442,0.00020744,2]
[366528390,1750306238216,-666.56761442,0.00020744,2]
[366528391,1750306238226,-666.56761442,0.00020744,2]
[366528392,1750306238236,-666.56761442,0.00020744,2]
[366528393,1750306238245,-666.56761442,0.00020744,2]
[366528394,1750306238255,-666.56761442,0.00020744,2]
[366528395,1750306238265,-666.56761442,0.00020744,2]
[366528396,1750306238275,-666.56761442,0.00020744,2]
[366528397,1750306238285,-666.56761442,0.00020744,2]
[366528398,1750306238295,-666.56761442,0.00020744,2]
[366528399,1750306238305,-666.56761442,0.00020744,2]
[366528400,1750306238315,-124.00825551,0.00021917,6]
[366528401,1750306238324,-460.0,0.00021917,6]
[366528402,1750306238334,-460.0,0.00021917,6]
[366528403,1750306238343,-460.0,0.00021917,6]
[366528404,1750306238352,-460.0,0.00021917,6]
[366528405,1750306238361,-460.0,0.00021917,6]
[366528406,1750306238371,-460.0,0.00021917,6]
[366528407,1750306238381,-460.0,0.00021917,6]
[366528408,1750306238390,-443.50644087,0.00021917,6]
[366528409,1750306238399,-460.0,0.00021917,6]
[366528410,1750306238409,-460.0,0.00021917,6]
[366528411,1750306238418,-460.0,0.00021917,6]
[366528412,1750306238428,-460.0,0.00021917,6]
[366528413,1750306238437,-460.0,0.00021917,6]
[366528414,1750306238447,-502.04120713,0.00021917,6]
[366528415,1750306238459,-713.62,0.00021917,6]
[366528416,1750306238469,-460.0,0.00021917,6]
[366528417,1750306238479,-437.98071053,0.00021917,6]
[366528418,1750306238488,-460.0,0.00021917,6]
[366528419,1750306238497,-460.0,0.00021917,6]
[366528420,1750306238507,-403.10290659,0.00021917,6]
[366528421,1750306238516,-420.0,0.00021917,6]
[366528422,1750306238525,-500.0,0.00021917,6]
[366528423,1750306238535,-460.0,0.00021917,6]
[366528424,1750306238546,-460.0,0.00021917,6]
[366528425,1750306238557,-461.83909232,0.00021917,6]
[366528426,1750306238566,-460.0,0.00021917,6]
[366528427,1750306238575,-500.0,0.00021917,6]
[366528428,1750306238584,-151.0,0.00021917,6]
[366528429,1750306238594,-460.0,0.00021917,6]
[366528430,1750306238604,-151.0,0.00021917,6]
[366528431,1750306238613,-500.0,0.00021917,6]
[366528432,1750306238622,-500.0,0.00021917,6]
[366528433,1750306238631,-460.0,0.00021917,6]
[366528434,1750306238640,-460.0,0.00021917,6]
[366528435,1750306238649,-500.0,0.00021917,6]
[366528436,1750306238658,-151.0591502,0.00021917,6]
[366528437,1750306238667,-226.26621613,0.00021917,6]
[366528438,1750306238676,-271.3972355,0.00021917,6]
[366528439,1750306238685,-500.0,0.00021917,6]
[366528440,1750306238695,-500.0,0.00021917,6]
[366528441,1750306238705,-500.0,0.00021917,6]
[366528442,1750306238714,-460.0,0.00021917,6]
[366528443,1750306238724,-500.0,0.00021917,6]